bitfinex/quotes_BTCUSD_20220303
["timestamp","ask_amount","ask_price","bid_price","bid_amount"]
[1646342148407,0.401442,42113.0,42112.0,0.00046266]
[1646342148611,0.401442,42113.0,42112.0,0.00030844]
[1646342148807,0.401442,42113.0,42103.0,0.09988842]
[1646342148808,0.059412,42111.0,42103.0,0.09988842]
[1646342149008,0.401442,42110.0,42105.0,0.12671699]
[1646342149208,0.401442,42110.0,42105.0,0.00015424]
[1646342149608,0.401442,42110.0,42105.0,0.00030848]
[1646342149848,0.401442,42110.0,42105.0,0.00046272]
[1646342150046,0.401442,42110.0,42107.0,0.06717285]
[1646342150550,0.401442,42110.0,42105.0,0.002]
[1646342150748,0.401442,42110.0,42106.0,0.00015424]
[1646342151149,0.401442,42110.0,42106.0,0.00030848]
[1646342151350,0.401442,42110.0,42106.0,0.00046272]
[1646342151751,0.401442,42110.0,42106.0,0.00030848]
[1646342151955,0.401442,42110.0,42103.0,0.09988842]
[1646342152153,0.401442,42110.0,42106.0,0.00013496]
[1646342152755,0.401442,42110.0,42106.0,0.00040488]
[1646342153156,0.401442,42110.0,42106.0,0.00026992]
[1646342153356,0.401442,42110.0,42106.0,0.00013496]
[1646342153610,0.401442,42110.0,42103.0,0.23314605]
[1646342153811,0.401442,42110.0,42106.0,0.00013496]
[1646342154312,0.460863,42110.0,42106.0,0.00040488]
[1646342154714,0.401442,42110.0,42106.0,0.00026992]
[1646342154913,0.401442,42110.0,42103.0,0.23314605]
[1646342155113,0.401442,42110.0,42106.0,7.158e-05]
[1646342155715,0.401442,42110.0,42106.0,0.00021474]
[1646342156117,0.401442,42110.0,42106.0,0.00014316]
[1646342156317,0.401442,42110.0,42106.0,0.00107158]
[1646342156514,0.401442,42110.0,42106.0,0.001]
[1646342156714,0.401442,42110.0,42106.0,0.00107158]
[1646342156917,0.353642,42110.0,42106.0,0.00107158]
[1646342157125,0.04858886,42115.0,42106.0,7.158e-05]
[1646342157345,0.353642,42114.0,42106.0,7.158e-05]
[1646342157946,0.353642,42114.0,42111.0,0.09308711]
[1646342159751,0.01187,42119.0,42111.0,0.09308711]
[1646342159949,0.353642,42118.0,42104.0,0.19425983]
[1646342160158,0.0999,42120.0,42104.0,0.19425983]
[1646342160348,0.002,42114.0,42106.0,0.002]
[1646342160748,0.353642,42113.0,42109.0,0.14606105]
[1646342160950,0.353642,42112.0,42109.0,0.14606105]
[1646342161191,0.353642,42113.0,42108.0,0.18215577]
[1646342161391,0.002,42114.0,42108.0,0.18215577]
[1646342161593,0.316788,42116.0,42108.0,0.18215577]
[1646342161594,0.3167214,42116.0,42108.0,0.18215577]
[1646342161794,0.25,42115.0,42107.0,0.11721823]
[1646342161995,0.353642,42114.0,42104.0,0.00013438]
[1646342162195,0.25,42115.0,42104.0,0.07117661]
[1646342162398,0.25,42115.0,42108.0,0.002]
[1646342162399,0.12329564,42113.0,42108.0,0.002]
[1646342162598,0.67026182,42112.0,42108.0,0.002]
[1646342162796,0.67026182,42112.0,42100.0,0.19828319]
[1646342162797,0.31661982,42112.0,42100.0,0.19828319]
[1646342162995,0.31661982,42112.0,42096.0,0.02382]
[1646342162996,0.353642,42111.0,42102.0,0.10064959]
[1646342163396,0.12329564,42109.0,42093.0,0.025]
[1646342163599,0.12329564,42109.0,42089.0,0.02670436]
[1646342163600,0.12329564,42104.0,42089.0,0.02670436]
[1646342163797,0.12329564,42104.0,42092.0,1.00419994]
[1646342163997,0.17109564,42104.0,42092.0,1.00419994]
[1646342164397,0.123229,42100.0,42090.0,0.09553041]
[1646342164598,0.67026182,42099.0,42090.0,0.09553041]
[1646342165054,0.123229,42095.0,42090.0,0.09553041]
[1646342165251,0.31661982,42094.0,42090.0,0.09553041]
[1646342165954,0.31661982,42094.0,42090.0,0.09564595]
[1646342166349,0.31661982,42094.0,42090.0,0.09587703]
[1646342166550,0.0478,42097.0,42090.0,0.09587703]
[1646342166752,0.0478,42097.0,42090.0,0.09576149]
[1646342166949,0.0478,42097.0,42090.0,0.08564595]
[1646342167150,0.0478,42097.0,42090.0,0.08553041]
[1646342167351,0.0478,42097.0,42091.0,0.00011554]
[1646342167552,0.0478,42097.0,42091.0,0.12336293]
[1646342167749,0.0478,42097.0,42091.0,0.00023108]
[1646342167951,0.0478,42097.0,42091.0,0.00034662]
[1646342168352,0.0478,42097.0,42091.0,0.00023108]
[1646342168591,0.0478,42097.0,42090.0,0.08553041]
[1646342168793,0.0478,42097.0,42092.0,0.00011553]
[1646342168997,0.0478,42103.0,42096.0,0.06026211]
[1646342169193,0.0478,42103.0,42097.0,0.12247454]
[1646342169392,0.353642,42102.0,42097.0,0.12247454]
[1646342169593,0.123229,42105.0,42097.0,0.12247454]
[1646342169792,0.353642,42104.0,42092.0,0.00023106]
[1646342169994,0.0478,42103.0,42092.0,0.00011553]
[1646342170196,0.0478,42103.0,42085.0,0.026771]
[1646342170197,0.0478,42102.0,42085.0,0.026771]
[1646342170394,0.31661982,42101.0,42096.0,0.0001422]
[1646342170596,0.0478,42102.0,42096.0,0.0001422]
[1646342171195,0.0478,42102.0,42096.0,0.0004266]
[1646342171395,0.0478,42102.0,42096.0,0.0002844]
[1646342171594,0.0478,42102.0,42091.0,0.10301957]
[1646342171795,0.36441982,42102.0,42091.0,0.10301957]
[1646342172196,0.36441982,42102.0,42092.0,0.16779997]
[1646342172441,0.36441982,42102.0,42091.0,0.10301957]
[1646342172643,0.36441982,42102.0,42094.0,0.0001422]
[1646342172845,0.36441982,42102.0,42094.0,0.0002844]
[1646342173442,0.36441982,42102.0,42094.0,0.0001422]
[1646342173642,0.36441982,42102.0,42093.0,0.06326053]
[1646342173843,0.36441982,42102.0,42096.0,0.00014649]
[1646342174243,0.36441982,42102.0,42096.0,0.00043947]
[1646342174944,0.0478,42102.0,42092.0,0.06181804]
[1646342175144,0.0478,42102.0,42097.0,0.00014649]
[1646342175744,0.0478,42102.0,42097.0,0.00043947]
[1646342176211,0.353642,42101.0,42097.0,0.00029298]
[1646342176410,0.353642,42101.0,42094.0,0.15664373]
[1646342176614,0.123229,42103.0,42094.0,0.15664373]
[1646342176811,0.123229,42103.0,42097.0,6.124e-05]
[1646342177212,0.01187,42106.0,42097.0,0.00012248]
[1646342177415,0.001,42107.0,42098.0,0.09762451]
[1646342177614,0.2412,42109.0,42099.0,0.31661982]
[1646342178413,0.2412,42109.0,42105.0,0.12136026]
[1646342178817,0.123229,42112.0,42102.0,0.00018369]
[1646342179413,0.123229,42112.0,42102.0,0.1648914]
[1646342179614,1.5833,42114.0,42102.0,0.16483017]
[1646342179846,1.5833,42114.0,42107.0,0.10497178]
[1646342180143,0.123229,42115.0,42107.0,0.10497178]
[1646342180344,0.353642,42114.0,42107.0,0.10497178]
[1646342180547,0.353642,42113.0,42107.0,0.10497178]
[1646342180745,0.123229,42115.0,42107.0,0.10497178]
[1646342181143,0.353642,42114.0,42107.0,0.10497178]
[1646342181346,0.02382,42114.0,42104.0,0.13044006]
[1646342181647,0.02382,42114.0,42102.0,0.16510695]
[1646342181844,0.02382,42114.0,42102.0,0.16524534]
[1646342182244,0.02382,42114.0,42102.0,0.16510695]
[1646342182445,0.123229,42115.0,42106.0,0.13087732]
[1646342182646,0.353642,42114.0,42106.0,0.13087732]
[1646342183048,0.123229,42115.0,42106.0,0.13087732]
[1646342183248,0.059407,42116.0,42106.0,0.13087732]
[1646342183596,0.0999,42117.0,42108.0,0.05492639]
[1646342183795,0.0999,42117.0,42105.0,0.31661982]
[1646342183996,0.0999,42117.0,42104.0,0.14410259]
[1646342184795,0.0999,42117.0,42106.0,0.0979678]
[1646342184796,0.12372,42117.0,42106.0,0.0979678]
[1646342184997,0.123229,42114.0,42104.0,0.14410259]
[1646342185196,0.123229,42112.0,42104.0,0.14410259]
[1646342185396,0.123229,42115.0,42104.0,0.14410259]
[1646342185999,0.083227,42116.0,42106.0,0.12413537]
[1646342186397,0.353642,42115.0,42106.0,0.12413537]
[1646342186797,0.353642,42115.0,42102.0,0.00030568]
[1646342186998,0.353642,42115.0,42101.0,0.19051951]
[1646342187197,0.377462,42114.0,42099.0,0.01187]
[1646342187444,0.353642,42112.0,42102.0,0.00015284]
[1646342187644,0.05941328,42113.0,42102.0,0.00030568]
[1646342187844,0.2415,42112.0,42102.0,0.00045852]
[1646342188249,0.2415,42112.0,42102.0,0.00030568]
[1646342188447,0.364729,42112.0,42102.0,0.00015284]
[1646342188645,0.364729,42112.0,42101.0,0.25304516]
[1646342188846,0.364729,42112.0,42102.0,0.00010087]
[1646342189047,0.364729,42112.0,42102.0,0.13069746]
[1646342189248,0.364729,42112.0,42102.0,0.13079833]
[1646342189446,0.364729,42112.0,42102.0,0.1308992]
[1646342189849,0.364729,42112.0,42102.0,0.13069746]
[1646342189850,0.2415,42112.0,42102.0,0.13069746]
[1646342190049,0.2415,42112.0,42102.0,0.13059659]
[1646342190250,0.364729,42112.0,42102.0,0.13063072]
[1646342190652,0.364729,42112.0,42102.0,0.13073159]
[1646342190853,0.364729,42112.0,42102.0,0.13083246]
[1646342191294,0.364729,42112.0,42102.0,0.13073159]
[1646342191497,0.364729,42112.0,42102.0,0.30693167]
[1646342191692,0.364729,42112.0,42102.0,0.30703407]
[1646342191893,0.364729,42112.0,42102.0,0.13063225]
[1646342192094,0.2415,42112.0,42102.0,0.13063225]
[1646342192295,0.2415,42112.0,42102.0,0.13083705]
[1646342192695,0.364729,42112.0,42102.0,0.13073465]
[1646342192895,0.364729,42112.0,42102.0,0.1908164]
[1646342193096,0.364729,42112.0,42102.0,0.190714]
[1646342193296,0.364729,42112.0,42102.0,0.1908164]
[1646342193696,0.364729,42112.0,42102.0,0.1909188]
[1646342193896,0.364729,42112.0,42102.0,0.1910212]
[1646342194296,0.2415,42112.0,42102.0,0.1908164]
[1646342194496,0.2415,42112.0,42102.0,0.190714]
[1646342194696,0.2415,42112.0,42102.0,0.1908164]
[1646342195149,0.2415,42112.0,42102.0,0.1909188]
[1646342195349,0.2415,42112.0,42104.0,0.21348507]
[1646342195547,0.2415,42112.0,42102.0,0.1910212]
[1646342195947,0.24048,42112.0,42102.0,0.1908164]
[1646342196152,0.24048,42112.0,42102.0,0.190714]
[1646342196347,0.24048,42112.0,42102.0,0.13066715]
[1646342196548,0.24048,42112.0,42102.0,0.13080445]
[1646342196748,0.24048,42112.0,42102.0,0.13094175]
[1646342196948,0.43474944,42114.0,42102.0,0.13094175]
[1646342197149,0.43474944,42114.0,42102.0,0.13080445]
[1646342197351,0.43474944,42114.0,42103.0,0.06240273]
[1646342197950,0.147049,42114.0,42103.0,0.06240273]
[1646342198350,0.147049,42114.0,42102.0,0.13094178]
[1646342198351,0.353642,42113.0,42102.0,0.00041193]
[1646342198603,0.353642,42113.0,42102.0,0.00027462]
[1646342198805,0.148049,42114.0,42102.0,0.00013731]
[1646342199005,0.148049,42114.0,42101.0,0.12752818]
[1646342199206,0.148049,42114.0,42102.0,6.358e-05]
[1646342199406,0.148049,42114.0,42104.0,0.12820527]
[1646342199608,0.148049,42114.0,42102.0,0.00019074]
[1646342200005,0.148049,42114.0,42102.0,0.05975774]
[1646342200209,0.147049,42114.0,42102.0,0.05963058]
[1646342200407,0.147049,42114.0,42101.0,0.12752818]
[1646342200607,0.147049,42114.0,42102.0,6.358e-05]
[1646342201008,0.147049,42114.0,42102.0,0.00012716]
[1646342201009,0.353642,42113.0,42102.0,0.00012716]
[1646342201211,0.147049,42114.0,42102.0,0.00019074]
[1646342201413,0.147049,42114.0,42102.0,0.15798733]
[1646342201611,0.147049,42114.0,42102.0,0.15792375]
[1646342201813,0.147049,42114.0,42101.0,0.12752818]
[1646342202112,0.147049,42114.0,42102.0,0.07349573]
[1646342202361,0.148049,42114.0,42102.0,0.07355931]
[1646342202661,0.148049,42114.0,42102.0,0.07362289]
[1646342203062,0.148049,42114.0,42102.0,0.07355931]
[1646342203262,0.148049,42114.0,42104.0,0.14174762]
[1646342203665,0.147049,42114.0,42104.0,0.14174762]
[1646342203863,0.147049,42114.0,42102.0,0.00013816]
[1646342203864,0.147049,42114.0,42102.0,0.00027632]
[1646342204067,0.05941554,42112.0,42102.0,0.00041448]
[1646342204266,0.0999,42117.0,42102.0,0.00041448]
[1646342204464,0.3423,42117.0,42102.0,0.32064166]
[1646342204663,0.3423,42117.0,42102.0,0.32036534]
[1646342204864,0.50937298,42117.0,42105.0,0.14898227]
[1646342205064,0.3423,42117.0,42105.0,0.14898227]
[1646342205265,0.36612,42117.0,42105.0,0.14898227]
[1646342206393,0.36712,42117.0,42105.0,0.14898227]
[1646342207594,0.36612,42117.0,42105.0,0.14898227]
[1646342207995,0.489349,42117.0,42105.0,0.14898227]
[1646342208395,0.490349,42117.0,42105.0,0.14898227]
[1646342209099,0.3433,42117.0,42106.0,0.32036534]
[1646342209295,0.2434,42117.0,42106.0,0.32036534]
[1646342209496,0.2434,42117.0,42115.0,0.05491626]
[1646342209695,1.5555,42119.0,42115.0,0.05491626]
[1646342209696,0.7424,42119.0,42115.0,0.23256218]
[1646342210146,0.7424,42119.0,42116.0,0.1715562]
[1646342210344,0.00184788,42122.0,42116.0,0.1715562]
[1646342210644,0.00061596,42122.0,42116.0,0.1715562]
[1646342210846,0.149049,42124.0,42116.0,0.1715562]
[1646342211348,0.02582,42124.0,42116.0,0.1715562]
[1646342211544,0.02582,42124.0,42115.0,0.001]
[1646342211745,0.02382,42124.0,42113.0,0.12794844]
[1646342212343,0.02382,42124.0,42117.0,0.21839779]
[1646342212544,0.123229,42125.0,42120.0,0.06614457]
[1646342212743,0.26022,42127.0,42117.0,0.21839779]
[1646342212943,0.26160104,42127.0,42117.0,0.21839779]
[1646342213143,0.26229156,42127.0,42117.0,0.21839779]
[1646342213596,0.23709052,42127.0,42117.0,0.21839779]
[1646342213796,0.2364,42127.0,42117.0,0.21839779]
[1646342213998,0.353642,42126.0,42120.0,0.14845199]
[1646342214405,0.00022264,42127.0,42121.0,0.68248634]
[1646342214600,0.00033396,42127.0,42126.0,0.17112204]
[1646342214799,0.00033396,42127.0,42121.0,0.32036534]
[1646342214998,0.00022264,42127.0,42123.0,0.362121]
[1646342215198,0.00011132,42127.0,42123.0,0.362121]
[1646342215398,0.123229,42129.0,42125.0,0.05836996]
[1646342215999,0.00030802,42127.0,42125.0,0.05836996]
[1646342216198,0.00046203,42127.0,42126.0,0.19830136]
[1646342216598,0.00015401,42127.0,42122.0,0.71218]
[1646342216798,0.125229,42129.0,42122.0,0.71218]
[1646342217442,0.00030802,42127.0,42122.0,0.71218]
[1646342217644,0.00046203,42127.0,42126.0,0.20091966]
[1646342217844,0.00046203,42127.0,42125.0,0.0736296]
[1646342218045,0.00030802,42127.0,42125.0,0.0736296]
[1646342218246,0.2333,42133.0,42125.0,0.0736296]
[1646342218454,0.002,42127.0,42126.0,0.68248634]
[1646342218647,0.002,42127.0,42126.0,0.362121]
[1646342218847,0.002,42127.0,42126.0,1.074271]
[1646342219247,0.002,42127.0,42126.0,1.43899863]
[1646342219650,0.00013816,42128.0,42126.0,1.43899863]
[1646342219847,0.55556534,42139.0,42129.0,0.10618084]
[1646342220048,0.2352,42139.0,42129.0,0.10618084]
[1646342220447,0.00110514,42135.0,42133.0,0.12643624]
[1646342220648,0.00165771,42135.0,42129.0,0.10618084]
[1646342220847,0.00165771,42135.0,42130.0,0.362121]
[1646342221098,0.00055257,42135.0,42130.0,0.362121]
[1646342221298,0.2352,42139.0,42130.0,0.362121]
[1646342221497,0.2352,42139.0,42129.0,0.10618084]
[1646342221900,0.00012368,42135.0,42133.0,0.12983629]
[1646342222100,0.00024736,42135.0,42126.0,0.9108775]
[1646342222302,0.00037104,42135.0,42127.0,0.362121]
[1646342222599,0.00037104,42135.0,42129.0,0.003]
[1646342222799,0.00012368,42135.0,42129.0,0.003]
[1646342223001,0.358429,42139.0,42129.0,0.003]
[1646342223201,0.358429,42139.0,42131.0,0.14401909]
[1646342223603,0.358429,42139.0,42126.0,0.9108775]
[1646342223604,8.773e-05,42131.0,42126.0,0.9108775]
[1646342223801,8.773e-05,42131.0,42127.0,0.362121]
[1646342224401,8.773e-05,42131.0,42127.0,0.366121]
[1646342225046,0.00024939,42131.0,42127.0,0.366121]
[1646342225247,0.00057271,42131.0,42127.0,0.366121]
[1646342225649,0.00041105,42131.0,42127.0,0.366121]
[1646342225847,0.00024939,42131.0,42127.0,0.362121]
[1646342226048,8.773e-05,42131.0,42127.0,0.362121]
[1646342226248,8.773e-05,42131.0,42127.0,0.41770606]
[1646342226448,0.00020615,42131.0,42127.0,0.42170606]
[1646342226648,0.00032457,42131.0,42127.0,0.42170606]
[1646342226847,0.00044299,42131.0,42127.0,0.42170606]
[1646342227248,0.00020615,42131.0,42127.0,0.42170606]
[1646342227452,0.00020615,42131.0,42127.0,0.366121]
[1646342227453,8.773e-05,42131.0,42127.0,0.366121]
[1646342227650,8.773e-05,42131.0,42126.0,0.71215]
[1646342228049,0.00032457,42131.0,42126.0,0.71215]
[1646342228251,0.00044299,42131.0,42126.0,0.71215]
[1646342228695,0.00032457,42131.0,42126.0,0.71215]
[1646342228894,8.773e-05,42131.0,42126.0,0.71215]
[1646342229096,0.353642,42130.0,42126.0,0.71215]
[1646342229297,0.123229,42129.0,42126.0,0.71215]
[1646342229696,0.123229,42129.0,42126.0,0.70715]
[1646342229897,0.353642,42128.0,42126.0,0.70715]
[1646342230097,0.123229,42129.0,42126.0,0.70715]
[1646342230797,0.353642,42128.0,42126.0,0.70715]
[1646342230997,0.353642,42127.0,42126.0,0.70715]
[1646342231301,0.353642,42128.0,42126.0,0.70715]
[1646342231496,0.35418437,42130.0,42126.0,0.70715]
[1646342231698,0.115129,42128.0,42126.0,0.70715]
[1646342233146,0.115129,42128.0,42126.0,0.90856289]
[1646342233349,0.115129,42128.0,42126.0,0.70715]
[1646342233947,0.115129,42130.0,42126.0,0.70715]
[1646342234148,0.00021132,42129.0,42126.0,0.70715]
[1646342234347,0.00031698,42129.0,42126.0,0.70715]
[1646342234847,0.00010566,42129.0,42126.0,0.70715]
[1646342235049,0.115129,42130.0,42126.0,0.70715]
[1646342235450,0.11523466,42130.0,42126.0,0.70715]
[1646342235650,0.11534032,42130.0,42126.0,0.70715]
[1646342235851,0.11544598,42130.0,42126.0,0.70715]
[1646342236292,0.11523466,42130.0,42126.0,0.70715]
[1646342236495,0.115129,42130.0,42126.0,0.70715]
[1646342237094,0.353642,42129.0,42126.0,0.70715]
[1646342238495,0.406442,42129.0,42126.0,0.70715]
[1646342239296,0.02382,42128.0,42126.0,0.70715]
[1646342239497,0.540391,42127.0,42126.0,0.70715]
[1646342239696,0.540391,42127.0,42126.0,5e-05]
[1646342239697,0.699794,42127.0,42126.0,5e-05]
[1646342240545,0.699794,42127.0,42113.0,0.17181857]
[1646342240546,0.05440143,42124.0,42113.0,0.17181857]
[1646342240741,0.05440143,42124.0,42113.0,0.10449085]
[1646342240742,0.401442,42123.0,42113.0,0.10449085]
[1646342241143,0.115129,42118.0,42113.0,0.10449085]
[1646342241945,0.0478,42123.0,42113.0,0.10449085]
[1646342242145,0.115129,42121.0,42113.0,0.10449085]
[1646342242544,0.115129,42121.0,42113.0,0.10749085]
[1646342242744,0.115129,42119.0,42113.0,0.10749085]
[1646342243346,0.115129,42121.0,42113.0,0.10749085]
[1646342243594,0.115129,42118.0,42113.0,0.10749085]
[1646342244597,0.115129,42118.0,42113.0,0.10705635]
[1646342244797,0.115129,42118.0,42114.0,0.05337696]
[1646342246397,0.117129,42118.0,42114.0,0.05337696]
[1646342246797,0.353642,42117.0,42114.0,0.05337696]
[1646342246996,0.117129,42118.0,42113.0,0.10405635]
[1646342247198,0.117129,42118.0,42109.0,0.003]
[1646342247446,0.115129,42115.0,42109.0,0.003]
[1646342247645,0.115129,42115.0,42108.0,0.19575257]
[1646342248046,0.115129,42117.0,42113.0,0.06727631]
[1646342249648,0.090129,42117.0,42113.0,0.06727631]
[1646342250049,0.08349,42123.0,42113.0,0.06727631]
[1646342250249,0.090129,42117.0,42113.0,0.06727631]
[1646342250450,0.02482,42122.0,42113.0,0.06827631]
[1646342250653,0.090129,42121.0,42113.0,0.06827631]
[1646342250851,0.353642,42120.0,42113.0,0.06827631]
[1646342251099,0.090129,42121.0,42113.0,0.06827631]
[1646342251299,0.091129,42122.0,42113.0,0.06827631]
[1646342251698,0.090129,42122.0,42113.0,0.06727631]
[1646342252098,0.353642,42121.0,42113.0,0.06727631]
[1646342252298,0.353642,42121.0,42108.0,0.33243602]
[1646342252500,0.091129,42122.0,42108.0,0.33443602]
[1646342252898,0.353642,42121.0,42108.0,0.13868345]
[1646342253099,0.091129,42122.0,42108.0,0.13868345]
[1646342253398,0.091129,42122.0,42108.0,0.26530923]
[1646342253602,0.001,42122.0,42115.0,0.064374]
[1646342253799,0.00183432,42123.0,42120.0,0.12354651]
[1646342253999,0.00061144,42123.0,42120.0,0.12354651]
[1646342254201,0.6275,42128.0,42120.0,0.12354651]
[1646342254401,0.001,42123.0,42121.0,0.68431762]
[1646342254601,0.001,42123.0,42122.0,0.68431762]
[1646342254860,0.001,42123.0,42122.0,0.85256843]
[1646342255055,0.001,42123.0,42122.0,1.24258181]
[1646342256258,8.773e-05,42131.0,42122.0,1.24258181]
[1646342256455,0.0003613,42127.0,42123.0,0.362121]
[1646342256656,0.00054195,42127.0,42122.0,1.05728543]
[1646342256853,0.00054195,42127.0,42123.0,0.362121]
[1646342257055,0.0003613,42127.0,42123.0,0.362121]
[1646342257255,0.00018065,42127.0,42123.0,0.362121]
[1646342257455,8.773e-05,42131.0,42130.0,0.06881557]
[1646342257656,0.35372973,42131.0,42130.0,0.06881557]
[1646342258056,8.773e-05,42131.0,42130.0,0.06881557]
[1646342258699,8.773e-05,42131.0,42123.0,0.14030586]
[1646342259104,8.773e-05,42131.0,42122.0,0.99353483]
[1646342259500,0.0001134,42129.0,42122.0,0.99353483]
[1646342259700,0.0002268,42129.0,42123.0,0.05742548]
[1646342259900,0.0003402,42129.0,42123.0,0.05742548]
[1646342260302,0.0002268,42129.0,42123.0,0.3796221]
[1646342260504,0.0001134,42129.0,42123.0,0.3836221]
[1646342260711,8.773e-05,42131.0,42123.0,0.3836221]
[1646342261103,0.0001134,42128.0,42123.0,0.3836221]
[1646342261304,0.0003402,42128.0,42123.0,0.3836221]
[1646342261507,0.0003402,42128.0,42124.0,0.362121]
[1646342261706,0.0002268,42128.0,42123.0,0.3796221]
[1646342261905,8.773e-05,42131.0,42123.0,0.3796221]
[1646342262351,8.773e-05,42131.0,42124.0,0.362121]
[1646342262552,0.0001134,42128.0,42123.0,0.3836221]
[1646342262751,0.0003402,42128.0,42124.0,0.362121]
[1646342262951,0.0003402,42128.0,42123.0,0.3836221]
[1646342263355,0.0001134,42128.0,42123.0,0.3836221]
[1646342263554,8.773e-05,42131.0,42123.0,0.3836221]
[1646342263752,8.773e-05,42131.0,42123.0,0.3796221]
[1646342263952,0.00018072,42128.0,42123.0,0.3796221]
[1646342264254,0.00054216,42128.0,42126.0,0.16704875]
[1646342264453,0.00054216,42128.0,42127.0,0.362121]
[1646342264654,0.00036144,42128.0,42127.0,0.362121]
[1646342264853,0.00036144,42128.0,42123.0,0.3836221]
[1646342264854,0.00018072,42128.0,42123.0,0.3836221]
[1646342265056,8.773e-05,42131.0,42124.0,0.362121]
[1646342265355,8.773e-05,42131.0,42123.0,0.3836221]
[1646342265555,0.00036144,42130.0,42124.0,0.362121]
[1646342265753,0.00054216,42130.0,42124.0,0.362121]
[1646342266208,0.00036144,42130.0,42124.0,0.362121]
[1646342266404,8.773e-05,42131.0,42124.0,0.362121]
[1646342266606,8.773e-05,42131.0,42124.0,0.366121]
[1646342266807,8.773e-05,42131.0,42130.0,0.34507706]
[1646342268504,8.773e-05,42131.0,42130.0,0.34707706]
[1646342268905,8.773e-05,42131.0,42130.0,0.70919806]
[1646342269106,8.773e-05,42131.0,42130.0,0.34707706]
[1646342269309,8.773e-05,42131.0,42130.0,0.70919806]
[1646342269707,8.773e-05,42131.0,42130.0,0.70719806]
[1646342270545,0.00208773,42131.0,42130.0,0.70719806]
[1646342271147,0.00208773,42131.0,42130.0,0.41884336]
[1646342271347,0.00208773,42131.0,42127.0,0.362121]
[1646342271548,0.00208773,42131.0,42126.0,0.17386825]
[1646342271747,8.773e-05,42131.0,42127.0,0.362121]
[1646342272147,8.773e-05,42131.0,42123.0,0.362121]
[1646342272349,8.773e-05,42131.0,42122.0,0.71221]
[1646342272549,8.773e-05,42131.0,42122.0,0.71521]
[1646342272550,0.00108773,42131.0,42122.0,0.71521]
[1646342273247,0.00018072,42129.0,42124.0,0.15362719]
[1646342273450,0.00054216,42129.0,42122.0,0.71521]
[1646342273700,0.00036144,42129.0,42122.0,0.71221]
[1646342273898,0.00018072,42129.0,42122.0,0.71221]
[1646342274099,8.773e-05,42131.0,42122.0,0.71221]
[1646342274602,8.773e-05,42131.0,42122.0,0.87000263]
[1646342274803,0.00026962,42128.0,42123.0,0.05302592]
[1646342275000,0.00040443,42128.0,42123.0,0.05302592]
[1646342275400,0.00026962,42128.0,42123.0,0.05302592]
[1646342275600,8.773e-05,42131.0,42123.0,0.05302592]
[1646342276204,0.00026962,42128.0,42126.0,0.362121]
[1646342276403,0.00040443,42128.0,42127.0,0.09884057]
[1646342276604,0.00040443,42128.0,42127.0,0.46096157]
[1646342276903,0.00026962,42128.0,42127.0,0.46096157]
[1646342277106,8.773e-05,42131.0,42127.0,0.46096157]
[1646342277347,8.773e-05,42131.0,42127.0,0.09884057]
[1646342277547,0.00014147,42130.0,42127.0,0.09884057]
[1646342277746,0.00028294,42130.0,42127.0,0.09884057]
[1646342277949,0.00042441,42130.0,42127.0,0.09884057]
[1646342278350,0.00028294,42130.0,42127.0,0.09884057]
[1646342278549,8.773e-05,42131.0,42127.0,0.10084057]
[1646342279149,0.00030993,42131.0,42130.0,0.05496961]
[1646342279351,0.00042103,42131.0,42129.0,0.20211664]
[1646342279553,0.00042103,42131.0,42127.0,0.10084057]
[1646342279753,0.00030993,42131.0,42128.0,0.362121]
[1646342279951,8.773e-05,42131.0,42127.0,0.09884057]
[1646342280551,8.773e-05,42131.0,42127.0,0.10084057]
[1646342280750,8.773e-05,42131.0,42127.0,0.30592375]
[1646342281796,8.773e-05,42131.0,42127.0,0.30392375]
[1646342281997,0.00026221,42131.0,42127.0,0.30392375]
[1646342282196,0.00061117,42131.0,42128.0,0.05272988]
[1646342282796,0.00026221,42131.0,42128.0,0.05272988]
[1646342282996,8.773e-05,42131.0,42128.0,0.05272988]
[1646342284601,0.00108773,42131.0,42125.0,0.362121]
[1646342284852,0.00108773,42131.0,42124.0,0.17231976]
[1646342285054,0.00108773,42131.0,42126.0,0.12446613]
[1646342285855,8.773e-05,42131.0,42124.0,0.17231976]
[1646342286055,8.773e-05,42131.0,42122.0,0.71221]
[1646342286251,8.773e-05,42131.0,42127.0,0.07416764]
[1646342286653,0.00013857,42130.0,42127.0,0.07416764]
[1646342286852,0.00027714,42130.0,42125.0,0.362121]
[1646342287053,0.00041571,42130.0,42124.0,0.18775488]
[1646342287452,0.00013857,42130.0,42124.0,0.18775488]
[1646342287657,0.09021673,42131.0,42124.0,0.18775488]
[1646342287952,0.09021673,42131.0,42124.0,0.18475488]
[1646342288152,0.00027714,42129.0,42125.0,0.362121]
[1646342288355,0.00041571,42129.0,42128.0,0.05831352]
[1646342288796,0.00027714,42129.0,42128.0,0.05831352]
[1646342289000,0.00013857,42129.0,42122.0,0.71221]
[1646342289196,0.09021673,42131.0,42122.0,0.71221]
[1646342289597,0.09037145,42131.0,42123.0,0.362121]
[1646342289796,0.09068089,42131.0,42123.0,0.362121]
[1646342289996,0.09068089,42131.0,42125.0,0.36969435]
[1646342290200,0.09068089,42131.0,42130.0,0.07234431]
[1646342290399,0.09037145,42131.0,42122.0,0.71221]
[1646342290597,0.09021673,42131.0,42125.0,0.003]
[1646342290800,0.09021673,42131.0,42126.0,0.362121]
[1646342290997,0.09021673,42131.0,42125.0,0.003]
[1646342291198,0.09021673,42131.0,42126.0,0.362121]
[1646342291599,0.09021673,42131.0,42127.0,0.07487007]
[1646342292000,0.09021673,42131.0,42122.0,0.71221]
[1646342292202,0.09021673,42131.0,42123.0,0.362121]
[1646342292446,0.09021673,42131.0,42124.0,0.362121]
[1646342292646,0.09033047,42131.0,42125.0,0.12213069]
[1646342292852,0.09055795,42131.0,42126.0,0.362121]
[1646342293045,0.09055795,42131.0,42125.0,0.12213069]
[1646342293246,0.09044421,42131.0,42126.0,0.362121]
[1646342293445,0.09021673,42131.0,42126.0,0.362121]
[1646342293646,0.09021673,42131.0,42126.0,0.05303853]
[1646342294049,0.09035765,42131.0,42126.0,0.05303853]
[1646342294247,0.09049857,42131.0,42126.0,0.05303853]
[1646342294448,0.09063949,42131.0,42126.0,0.05303853]
[1646342294649,0.09063949,42131.0,42127.0,0.21704558]
[1646342294848,0.09035765,42131.0,42126.0,0.05503853]
[1646342295052,0.09021673,42131.0,42127.0,0.12425639]
[1646342295454,0.09035765,42131.0,42126.0,0.05503853]
[1646342295651,0.09049857,42131.0,42126.0,0.05503853]